lending/lending_fUSD_20251124
["ID","MTS","AMOUNT","RATE_DAILY","PERIOD"]
[394790817,1763952638027,-417.48,0.00037726,2]
[394790818,1763952638037,-355.2,0.00037726,2]
[394790819,1763952638047,-551.17,0.00037726,2]
[394790820,1763952638060,-169.75,0.00037726,2]
[394790821,1763952638070,-417.48,0.00037726,2]
[394790822,1763952638080,-177.64,0.00037726,2]
[394790823,1763952638090,-169.75,0.00037726,2]
[394790824,1763952638100,-417.48,0.00037726,2]
[394790825,1763952638109,-551.17,0.00037726,2]
[394790826,1763952638119,-1109.74,0.00037726,2]
[394790827,1763952638129,-177.64,0.00037726,2]
[394790828,1763952638138,-169.75,0.00037726,2]
[394790829,1763952638148,-417.48,0.00037726,2]
[394790830,1763952638158,-551.04,0.00037726,2]
[394790831,1763952638167,-177.64,0.00037726,2]
[394790832,1763952638179,-169.75,0.00037726,2]
[394790833,1763952638189,-417.48,0.00037726,2]
[394790834,1763952638199,-177.64,0.00037726,2]
[394790835,1763952638209,-551.04,0.00037726,2]
[394790836,1763952638222,-831.83,0.00037726,2]
[394790837,1763952638232,-169.75,0.00037726,2]
[394790838,1763952638242,-177.64,0.00037726,2]
[394790839,1763952638252,-551.04,0.00037726,2]
[394790840,1763952638263,-174.73,0.00037726,2]
[394790841,1763952638272,-417.4,0.00037726,2]
[394790842,1763952638282,-177.4,0.00037726,2]
[394790843,1763952638291,-417.4,0.00037726,2]
[394790844,1763952638301,-417.4,0.00037726,2]
[394790845,1763952638310,-304.96833895,0.00037726,2]
[394790846,1763952638327,-50.27166105,0.00037726,2]
[394790847,1763952638337,-177.6,0.00037726,2]
[394790848,1763952638346,-177.6,0.00037726,2]
[394790849,1763952638356,-2758.20043967,0.000378,14]
[394790850,1763952638365,-216.53069,0.00037888,30]
[394790851,1763952638375,-157.39512119,0.00037918,79]
[394790852,1763952638385,-1483.97952491,0.00037955,2]
[394790853,1763952638396,-2595.21177509,0.00037955,2]
[394790854,1763952638406,-1000.0,0.00037955,2]
[394790855,1763952638417,-1336.94022501,0.00037955,2]
[394790856,1763952638428,-5004.35725198,0.00037955,2]
[394790857,1763952638440,-14334.29622301,0.00037955,2]
[394790858,1763952638450,-1089.35110188,0.00037955,2]
[394790859,1763952638459,-2500.0,0.00037956,2]
[394790860,1763952638469,-5000.0,0.00037956,30]
[394790861,1763952638478,-302.91779153,0.00037973,2]
[394790862,1763952638488,-5768.44867685,0.00037973,2]
[394790863,1763952638498,-170.8982926,0.00037973,15]
[394790864,1763952638507,-1408.76445909,0.00037973,12]
[394790865,1763952638516,-346.75893234,0.00038,8]
[394790866,1763952638526,-3067.3343766,0.00038018,2]
[394790867,1763952638535,-1498.1758997,0.00038018,2]
[394790868,1763952638544,-849.2687416,0.00038018,2]
[394790869,1763952638553,-2578.683323,0.00038018,2]
[394790870,1763952638563,-2987.562302,0.00038018,2]
[394790871,1763952638572,-1176.9625442,0.00038018,2]
[394790872,1763952638581,-7225.5919337,0.00038018,2]
[394790873,1763952638592,-8599.7505468,0.00038018,2]
[394790874,1763952638602,-2034.35159327,0.00038018,2]
[394790875,1763952638613,-3361.00803383,0.00038018,2]
[394790876,1763952638623,-2176.0630165,0.00038018,2]
[394790877,1763952638632,-151.0,0.00038033,2]
[394790878,1763952638642,-295.61333143,0.00038033,2]
[394790879,1763952638651,-1405.77470824,0.00038046,4]
[394790880,1763952638661,-169.35,0.00038052,2]
[394790881,1763952638670,-500.0,0.00038055,15]
[394790882,1763952638680,-191.96894709,0.00038055,15]
[394790883,1763952638689,-281.9757933,0.00038055,15]
[394790884,1763952638699,-250.0,0.00038055,15]
[394790885,1763952638709,-500.0,0.00038055,15]
[394790886,1763952638725,-500.0,0.00038055,15]
[394790887,1763952638735,-519.14224085,0.00038055,15]
[394790888,1763952638746,-500.0,0.00038055,15]
[394790889,1763952638757,-500.0,0.00038055,15]
[394790890,1763952638767,-617.62163695,0.00038055,15]
[394790891,1763952638778,-500.0,0.00038055,15]
[394790892,1763952638788,-500.0,0.00038055,7]
[394790893,1763952638802,-500.0,0.00038055,7]
[394790894,1763952638818,-617.62163695,0.00038055,15]
[394790895,1763952638829,-153.1258372,0.00038055,15]
[394790896,1763952638840,-500.0,0.00038055,7]
[394790897,1763952638851,-500.0,0.00038055,7]
[394790898,1763952638862,-617.62163695,0.00038055,15]
[394790899,1763952638872,-617.62163695,0.00038055,15]
[394790900,1763952638883,-647.1848299,0.00038055,7]
[394790901,1763952638894,-500.0,0.00038055,7]
[394790902,1763952638905,-617.62163695,0.00038055,15]
[394790903,1763952638915,-341.05763128,0.00038055,7]
[394790904,1763952638926,-617.62163695,0.00038055,15]
[394790905,1763952638936,-617.62163695,0.00038055,15]
[394790906,1763952638946,-617.62163695,0.00038055,15]
[394790907,1763952638956,-617.62163695,0.00038055,15]
[394790908,1763952638966,-617.62163695,0.00038055,15]
[394790909,1763952638976,-617.62163695,0.00038055,15]
[394790910,1763952638987,-617.62163695,0.00038055,15]
[394790911,1763952638997,-617.62163695,0.00038055,15]
[394790912,1763952639008,-617.62163695,0.00038055,15]
[394790913,1763952639018,-617.62163695,0.00038055,15]
[394790914,1763952639028,-617.62163695,0.00038055,15]
[394790915,1763952639039,-617.62163695,0.00038055,15]
[394790916,1763952639049,-617.62163695,0.00038055,15]
[394790917,1763952639059,-617.62163695,0.00038055,15]
[394790918,1763952639069,-617.62163695,0.00038055,15]
[394790919,1763952639079,-617.62163695,0.00038055,15]
[394790920,1763952639089,-617.62163695,0.00038055,15]
[394790921,1763952639101,-617.62163695,0.00038055,15]
[394790922,1763952639111,-617.62163695,0.00038055,15]
[394790923,1763952639123,-617.62163695,0.00038055,15]
[394790924,1763952639135,-617.62163695,0.00038055,15]
[394790925,1763952639145,-617.62163695,0.00038055,15]
[394790926,1763952639155,-617.62163695,0.00038055,15]
[394790927,1763952639169,-617.62163695,0.00038055,15]
[394790928,1763952639179,-617.62163695,0.00038055,15]
[394790929,1763952639193,-617.62163695,0.00038055,15]
[394790930,1763952639203,-617.62163695,0.00038055,15]
[394790931,1763952639213,-617.62163695,0.00038055,15]
[394790932,1763952639223,-617.62163695,0.00038055,15]
[394790933,1763952639234,-617.62163695,0.00038055,15]
[394790934,1763952639245,-617.62163695,0.00038055,15]
[394790935,1763952639262,-617.62163695,0.00038055,15]
[394790936,1763952639272,-617.62163695,0.00038055,15]
[394790937,1763952639282,-617.62163695,0.00038055,15]
[394790938,1763952639292,-617.62163695,0.00038055,15]
[394790939,1763952639302,-617.62163695,0.00038055,15]
[394790940,1763952639312,-617.62163695,0.00038055,15]
[394790941,1763952639321,-617.62163695,0.00038055,15]
[394790942,1763952639331,-617.62163695,0.00038055,15]
[394790943,1763952639340,-617.62163695,0.00038055,15]
[394790944,1763952639350,-617.62163695,0.00038055,15]
[394790945,1763952639360,-617.62163695,0.00038055,15]
[394790946,1763952639370,-617.62163695,0.00038055,15]
[394790947,1763952639379,-617.62163695,0.00038055,15]
[394790948,1763952639389,-617.62163695,0.00038055,15]
[394790949,1763952639398,-617.62163695,0.00038055,15]
[394790950,1763952639408,-500.0,0.00038055,15]
[394790951,1763952639418,-500.0,0.00038055,15]
[394790952,1763952639427,-346.25382898,0.00038055,15]
[394790953,1763952639437,-500.0,0.00038055,15]
[394790954,1763952639446,-157.9435177,0.00038055,15]
[394790955,1763952639457,-447.92754322,0.00038055,15]
[394790956,1763952639466,-602.18109602,0.00038055,15]
[394790957,1763952639475,-602.18109602,0.00038055,15]
[394790958,1763952639484,-602.18109602,0.00038055,15]
[394790959,1763952639494,-602.18109602,0.00038055,15]
[394790960,1763952639504,-602.18109602,0.00038055,15]
[394790961,1763952639513,-602.18109602,0.00038055,15]
[394790962,1763952639522,-602.18109602,0.00038055,15]
[394790963,1763952639531,-602.18109602,0.00038055,15]
[394790964,1763952639541,-602.18109602,0.00038055,15]
[394790965,1763952639551,-602.18109602,0.00038055,15]
[394790966,1763952639561,-602.18109602,0.00038055,15]
[394790967,1763952639570,-602.18109602,0.00038055,15]
[394790968,1763952639580,-602.18109602,0.00038055,15]
[394790969,1763952639590,-602.18109602,0.00038055,15]
[394790970,1763952639604,-602.18109602,0.00038055,15]
[394790971,1763952639613,-602.18109602,0.00038055,15]
[394790972,1763952639623,-602.18109602,0.00038055,15]
[394790973,1763952639633,-602.18109602,0.00038055,15]
[394790974,1763952639642,-602.18109602,0.00038055,15]
[394790975,1763952639652,-602.18109602,0.00038055,15]
[394790976,1763952639662,-602.18109602,0.00038055,15]
[394790977,1763952639671,-602.18109602,0.00038055,15]
[394790978,1763952639681,-602.18109602,0.00038055,15]
[394790979,1763952639690,-602.18109602,0.00038055,15]
[394790980,1763952639699,-602.18109602,0.00038055,15]
[394790981,1763952639709,-602.18109602,0.00038055,15]
[394790982,1763952639719,-602.18109602,0.00038055,15]
[394790983,1763952639728,-602.18109602,0.00038055,15]
[394790984,1763952639739,-602.18109602,0.00038055,15]
[394790985,1763952639750,-752.27197503,0.00038055,15]
[394790986,1763952639759,-752.27197503,0.00038055,15]
[394790987,1763952639769,-752.27197503,0.00038055,15]
[394790988,1763952639779,-752.27197503,0.00038055,15]
[394790989,1763952639789,-752.27197503,0.00038055,15]
[394790990,1763952639798,-752.27197503,0.00038055,15]
[394790991,1763952639808,-207.21620606,0.00038055,7]
[394790992,1763952639817,-500.0,0.00038055,8]
[394790993,1763952639826,-500.0,0.00038055,8]
[394790994,1763952639836,-520.69666689,0.00038055,8]
[394790995,1763952639846,-500.0,0.00038055,8]
[394790996,1763952639855,-500.0,0.00038055,8]
[394790997,1763952639865,-500.0,0.00038055,8]
[394790998,1763952639874,-235.7593192,0.00038055,8]
[394790999,1763952639884,-500.0,0.00038055,8]
[394791000,1763952639893,-500.0,0.00038055,8]
[394791001,1763952639903,-615.9526452,0.00038055,8]
[394791002,1763952639912,-500.0,0.00038055,8]
[394791003,1763952639923,-500.0,0.00038055,8]
[394791004,1763952639934,-500.0,0.00038055,8]
[394791005,1763952639944,-500.0,0.00038055,8]
[394791006,1763952639953,-500.0,0.00038055,8]
[394791007,1763952639966,-500.0,0.00038055,7]
[394791008,1763952639975,-500.0,0.00038055,7]
[394791009,1763952639988,-500.0,0.00038055,7]
[394791010,1763952639998,-500.0,0.00038055,7]
[394791011,1763952640008,-500.0,0.00038055,2]
[394791012,1763952640019,-500.0,0.00038055,2]
[394791013,1763952640029,-500.0,0.00038055,2]
[394791014,1763952640041,-465.79407674,0.00038055,8]
[394791015,1763952640052,-1049.16,0.00038055,14]
[394791016,1763952640062,-248900.20123938,0.00038056,2]
[394791017,1763952640509,-133139.33658015,0.00038056,2]
[394791018,1763952640522,-160527.51872436,0.00038056,2]
[394791019,1763952640533,-1452.89913358,0.00038056,2]
[394791020,1763952640544,-340.29507237,0.00038056,2]
[394791021,1763952640737,-1115.90003394,0.00038056,2]
[394791022,1763952640748,-3733.06767835,0.00038056,2]
[394791023,1763952640759,-210790.78153787,0.00038056,2]
[394791024,1763952640768,-500.0,0.00038073,5]
[394791025,1763952640777,-500.9891276,0.00038073,5]
[394791026,1763952640787,-158.84342817,0.00038073,5]
[394791027,1763952640796,-500.0,0.00038073,5]
[394791028,1763952640805,-500.92010829,0.00038073,5]
[394791029,1763952640814,-164.89619302,0.00038073,5]
[394791030,1763952640823,-501.2949182,0.00038073,5]
[394791031,1763952640832,-414.56319387,0.00038073,5]
[394791032,1763952640841,-500.0,0.00038073,5]
[394791033,1763952640851,-500.0,0.00038073,5]
[394791034,1763952640861,-500.0,0.00038073,5]
[394791035,1763952640872,-501.77996762,0.00038073,5]
[394791036,1763952640881,-501.27256296,0.00038073,5]
[394791037,1763952640891,-417.61433429,0.00038073,2]
[394791038,1763952640902,-164.1506102,0.00038073,5]
[394791039,1763952640912,-520.99312177,0.00038073,5]
[394791040,1763952640921,-500.65345159,0.00038073,5]
[394791041,1763952640930,-553.75648465,0.00038073,5]
[394791042,1763952640940,-500.86341924,0.00038073,5]
[394791043,1763952640949,-500.73816641,0.00038073,5]
[394791044,1763952640958,-305.87253345,0.00038073,5]
[394791045,1763952640967,-500.0,0.00038073,5]
[394791046,1763952640977,-372.63423985,0.00038073,5]
[394791047,1763952640986,-216.53069,0.00038088,30]
[394791048,1763952640996,-1408.76445909,0.00038115,13]
[394791049,1763952641005,-27073.3715,0.00038156,2]
[394791050,1763952641015,-541.52,0.000382,80]
[394791051,1763952641025,-458.0,0.00038223,2]
[394791052,1763952641035,-512.62008311,0.00038255,8]
[394791053,1763952641045,-433.22462806,0.00038255,8]
[394791054,1763952641054,-500.0,0.00038255,2]
[394791055,1763952641064,-1408.76445909,0.00038256,13]
[394791056,1763952641073,-1000.0,0.00038272,2]
[394791057,1763952641083,-1089.35110188,0.00038282,2]
[394791058,1763952641092,-216.53069,0.00038288,30]
[394791059,1763952641102,-5768.44867677,0.00038298,2]
[394791060,1763952641111,-500.0,0.00038328,120]
[394791061,1763952641120,-1049.16,0.00038329,14]
[394791062,1763952641130,-150.62,0.00038346,2]
[394791063,1763952641139,-1000.0,0.00038349,3]
[394791064,1763952641149,-414.67783564,0.00038355,15]
[394791065,1763952641158,-302.01927769,0.00038355,15]
[394791066,1763952641168,-500.0,0.00038355,15]
[394791067,1763952641181,-500.0,0.00038355,15]
[394791068,1763952641190,-500.0,0.00038355,15]
[394791069,1763952641200,-281.62803,0.00038355,15]
[394791070,1763952641210,-959.11904512,0.00038355,15]
[394791071,1763952641219,-959.11904512,0.00038355,15]
[394791072,1763952641229,-500.0,0.00038355,8]
[394791073,1763952641239,-500.0,0.00038355,8]
[394791074,1763952641248,-500.0,0.00038355,7]
[394791075,1763952641259,-500.0,0.00038355,7]
[394791076,1763952641268,-219.90951083,0.00038355,8]
[394791077,1763952641277,-276.31754788,0.00038355,8]
[394791078,1763952641287,-805.70833794,0.00038355,8]
[394791079,1763952641296,-500.0,0.00038355,8]
[394791080,1763952641305,-500.0,0.00038355,8]
[394791081,1763952641314,-500.0,0.00038355,8]
[394791082,1763952641324,-500.0,0.00038355,8]
[394791083,1763952641333,-500.0,0.00038355,8]
[394791084,1763952641342,-500.0,0.00038355,8]
[394791085,1763952641352,-500.0,0.00038355,8]
[394791086,1763952641362,-500.0,0.00038355,8]
[394791087,1763952641373,-500.0,0.00038355,8]
[394791088,1763952641382,-500.0,0.00038355,8]
[394791089,1763952641392,-500.0,0.00038355,8]
[394791090,1763952641401,-500.0,0.00038355,8]
[394791091,1763952641410,-500.0,0.00038355,8]
[394791092,1763952641420,-184.77103183,0.00038355,8]
[394791093,1763952641429,-500.0,0.00038355,8]
[394791094,1763952641439,-500.0,0.00038355,8]
[394791095,1763952641448,-620.0,0.00038355,8]
[394791096,1763952641458,-500.0,0.00038355,8]
[394791097,1763952641468,-500.0,0.00038355,8]
[394791098,1763952641477,-651.31514718,0.00038355,8]
[394791099,1763952641486,-500.0,0.00038355,8]
[394791100,1763952641496,-500.0,0.00038355,8]
[394791101,1763952641505,-500.0,0.00038355,8]
[394791102,1763952641514,-500.0,0.00038355,8]
[394791103,1763952641523,-500.0,0.00038355,8]
[394791104,1763952641532,-500.0,0.00038355,8]
[394791105,1763952641541,-500.0,0.00038355,8]
[394791106,1763952641550,-500.0,0.00038355,8]
[394791107,1763952641559,-500.0,0.00038355,8]
[394791108,1763952641568,-500.0,0.00038355,8]
[394791109,1763952641577,-500.0,0.00038355,8]
[394791110,1763952641587,-218.83931656,0.00038355,8]
[394791111,1763952641596,-500.0,0.00038355,8]
[394791112,1763952641607,-500.0,0.00038355,8]
[394791113,1763952641616,-500.0,0.00038355,8]
[394791114,1763952641625,-500.0,0.00038355,8]
[394791115,1763952641635,-500.0,0.00038355,8]
[394791116,1763952641644,-500.0,0.00038355,8]
[394791117,1763952641654,-500.0,0.00038355,8]
[394791118,1763952641663,-500.0,0.00038355,8]
[394791119,1763952641673,-500.0,0.00038355,8]
[394791120,1763952641682,-500.0,0.00038355,8]
[394791121,1763952641691,-500.0,0.00038355,8]
[394791122,1763952641701,-500.0,0.00038355,8]
[394791123,1763952641710,-587.25202429,0.00038355,8]
[394791124,1763952641719,-500.0,0.00038355,8]
[394791125,1763952641729,-500.0,0.00038355,8]
[394791126,1763952641739,-500.0,0.00038355,8]
[394791127,1763952641748,-500.0,0.00038355,2]
[394791128,1763952641757,-1000.0,0.00038355,2]
[394791129,1763952641766,-1000.0,0.00038355,3]
[394791130,1763952641776,-1000.0,0.00038355,3]
[394791131,1763952641785,-501.26063955,0.00038356,8]
[394791132,1763952641795,-506.62920117,0.00038356,8]
[394791133,1763952641804,-501.61173428,0.00038356,8]
[394791134,1763952641813,-501.32558539,0.00038356,8]
[394791135,1763952641822,-500.0,0.00038356,8]
[394791136,1763952641831,-503.02297782,0.00038356,8]
[394791137,1763952641841,-151.361882,0.00038356,8]
[394791138,1763952641852,-503.57074629,0.00038356,8]
[394791139,1763952641861,-501.8806505,0.00038356,8]
[394791140,1763952641871,-500.0,0.00038356,8]
[394791141,1763952641881,-557.07820574,0.00038356,8]
[394791142,1763952641891,-500.0,0.00038356,8]
[394791143,1763952641900,-500.0,0.00038356,8]
[394791144,1763952641909,-501.27125163,0.00038356,2]
[394791145,1763952641920,-500.0,0.00038356,8]
[394791146,1763952641929,-502.44639571,0.00038356,8]
[394791147,1763952641939,-406.38653388,0.00038356,8]
[394791148,1763952641948,-287.38081911,0.00038356,8]
[394791149,1763952641958,-500.0,0.00038356,8]
[394791150,1763952641968,-200.0,0.00038356,2]
[394791151,1763952641978,-500.0,0.00038356,8]
[394791152,1763952641988,-500.0,0.00038356,8]
[394791153,1763952641997,-501.751303,0.00038356,8]
[394791154,1763952642007,-500.0,0.00038356,8]
[394791155,1763952642016,-504.25965622,0.00038356,8]
[394791156,1763952642026,-500.0,0.00038356,8]
[394791157,1763952642036,-500.0,0.00038356,8]
[394791158,1763952642045,-516.04581981,0.00038356,8]
[394791159,1763952642055,-500.0,0.00038356,8]
[394791160,1763952642064,-500.0,0.00038356,8]
[394791161,1763952642073,-541.95400307,0.00038356,8]
[394791162,1763952642082,-500.0,0.00038356,8]
[394791163,1763952642090,-500.00127748,0.00038356,8]
[394791164,1763952642101,-531.97395474,0.00038356,8]
[394791165,1763952642110,-500.0,0.00038356,8]
[394791166,1763952642121,-500.0,0.00038356,8]
[394791167,1763952642130,-500.0,0.00038356,8]
[394791168,1763952642139,-500.0,0.00038356,8]
[394791169,1763952642149,-510.41952583,0.00038356,8]
[394791170,1763952642158,-501.47628813,0.00038356,8]
[394791171,1763952642173,-589.81712656,0.00038356,8]
[394791172,1763952642183,-500.0,0.00038356,8]
[394791173,1763952642192,-500.0,0.00038356,8]
[394791174,1763952642201,-500.0,0.00038356,8]
[394791175,1763952642211,-500.0,0.00038356,8]
[394791176,1763952642220,-500.0,0.00038356,8]
[394791177,1763952642229,-621.20164704,0.00038356,8]
[394791178,1763952642240,-500.0,0.00038356,8]
[394791179,1763952642250,-500.0,0.00038356,8]
[394791180,1763952642259,-507.33994248,0.00038356,8]
[394791181,1763952642268,-504.25521357,0.00038356,8]
[394791182,1763952642278,-500.0,0.00038356,8]
[394791183,1763952642287,-510.29605095,0.00038356,8]
[394791184,1763952642296,-505.23640007,0.00038356,8]
[394791185,1763952642305,-500.0,0.00038356,8]
[394791186,1763952642315,-500.0,0.00038356,8]
[394791187,1763952642324,-504.32017997,0.00038356,8]
[394791188,1763952642333,-500.32295156,0.00038356,8]
[394791189,1763952642342,-213.0731005,0.00038356,8]
[394791190,1763952642351,-500.0,0.00038356,8]
[394791191,1763952642360,-502.25601165,0.00038356,8]
[394791192,1763952642369,-500.0,0.00038356,8]
[394791193,1763952642378,-500.0,0.00038356,8]
[394791194,1763952642387,-500.0,0.00038356,8]
[394791195,1763952642397,-500.0,0.00038356,8]
[394791196,1763952642406,-510.96685744,0.00038356,8]
[394791197,1763952642416,-500.0,0.00038356,8]
[394791198,1763952642425,-500.0,0.00038356,8]
[394791199,1763952642435,-500.0,0.00038356,8]
[394791200,1763952642444,-500.0,0.00038356,8]
[394791201,1763952642454,-500.0,0.00038356,7]
[394791202,1763952642463,-522.51525579,0.00038356,8]
[394791203,1763952642472,-500.0,0.00038356,8]
[394791204,1763952642482,-500.0,0.00038356,8]
[394791205,1763952642491,-500.0,0.00038356,8]
[394791206,1763952642500,-500.0,0.00038356,8]
[394791207,1763952642509,-505.40028367,0.00038356,8]
[394791208,1763952642519,-500.0,0.00038356,8]
[394791209,1763952642528,-500.0,0.00038356,8]
[394791210,1763952642538,-500.0,0.00038356,8]
[394791211,1763952642547,-502.77505296,0.00038356,8]
[394791212,1763952642556,-501.8762569,0.00038356,8]
[394791213,1763952642565,-500.0,0.00038356,8]
[394791214,1763952642574,-500.0,0.00038356,8]
[394791215,1763952642584,-514.63095914,0.00038356,8]
[394791216,1763952642593,-369.93461801,0.00038356,8]
[394791217,1763952642603,-510.02541627,0.00038356,8]
[394791218,1763952642612,-500.0,0.00038356,8]
[394791219,1763952642622,-500.0,0.00038356,8]
[394791220,1763952642631,-507.98922839,0.00038356,8]
[394791221,1763952642640,-500.0,0.00038356,8]
[394791222,1763952642650,-500.0,0.00038356,8]
[394791223,1763952642659,-500.0,0.00038356,8]
[394791224,1763952642669,-513.68264165,0.00038356,8]
[394791225,1763952642678,-500.0,0.00038356,8]
[394791226,1763952642689,-504.81785043,0.00038356,8]
[394791227,1763952642700,-506.01676364,0.00038356,7]
[394791228,1763952642709,-500.0,0.00038356,2]
[394791229,1763952642719,-500.0,0.00038356,8]
[394791230,1763952642728,-500.0,0.00038356,8]
[394791231,1763952642737,-500.0,0.00038356,8]
[394791232,1763952642747,-500.0,0.00038356,8]
[394791233,1763952642756,-500.0,0.00038356,8]
[394791234,1763952642765,-500.0,0.00038356,8]
[394791235,1763952642775,-507.74945867,0.00038356,8]
[394791236,1763952642784,-500.0,0.00038356,8]
[394791237,1763952642794,-505.31474731,0.00038356,8]
[394791238,1763952642803,-500.0,0.00038356,2]
[394791239,1763952642812,-503.27793157,0.00038356,8]
[394791240,1763952642822,-505.59427179,0.00038356,8]
[394791241,1763952642831,-500.0,0.00038356,8]
[394791242,1763952642840,-500.0,0.00038356,8]
[394791243,1763952642849,-286.26072373,0.00038356,8]
[394791244,1763952642858,-500.0,0.00038356,8]
[394791245,1763952642867,-500.0,0.00038356,8]
[394791246,1763952642876,-500.0,0.00038356,8]
[394791247,1763952642885,-500.0,0.00038356,8]
[394791248,1763952642894,-519.0533366,0.00038356,8]
[394791249,1763952642903,-503.62628422,0.00038356,8]
[394791250,1763952642912,-575.65479981,0.00038356,8]
[394791251,1763952642922,-500.0,0.00038356,8]
[394791252,1763952642931,-427.3509391,0.00038356,8]
[394791253,1763952642941,-506.17135985,0.00038356,8]
[394791254,1763952642951,-500.0,0.00038356,8]
[394791255,1763952642960,-505.46811144,0.00038356,8]
[394791256,1763952642969,-510.60970466,0.00038356,8]
[394791258,1763952642979,-505.76053257,0.00038356,8]
[394791259,1763952642989,-506.08354531,0.00038356,8]
[394791260,1763952642998,-500.0,0.00038356,8]
[394791261,1763952643007,-504.85684829,0.00038356,8]
[394791262,1763952643016,-505.59007146,0.00038356,8]
[394791263,1763952643026,-502.53657844,0.00038356,8]
[394791265,1763952643035,-552.77330668,0.00038356,8]
[394791267,1763952643045,-500.0,0.00038356,8]
[394791269,1763952643054,-500.0,0.00038356,8]
[394791271,1763952643063,-500.0,0.00038356,8]
[394791272,1763952643073,-500.0,0.00038356,8]
[394791273,1763952643082,-196.87640812,0.00038356,8]
[394791274,1763952643091,-500.0,0.00038356,8]
[394791275,1763952643101,-505.79324777,0.00038356,8]
[394791277,1763952643110,-500.0,0.00038356,8]
[394791279,1763952643121,-500.0,0.00038356,8]
[394791280,1763952643130,-508.77619443,0.00038356,8]
[394791281,1763952643140,-500.0,0.00038356,8]
[394791282,1763952643148,-503.82456589,0.00038356,8]
[394791283,1763952643158,-501.81410566,0.00038356,8]
[394791284,1763952643168,-500.0,0.00038356,8]
[394791285,1763952643181,-500.0,0.00038356,8]
[394791286,1763952643190,-500.0,0.00038356,8]
[394791287,1763952643199,-500.0,0.00038356,8]
[394791288,1763952643208,-502.71512622,0.00038356,8]
[394791289,1763952643218,-505.98238265,0.00038356,8]
[394791290,1763952643228,-500.0,0.00038356,8]
[394791291,1763952643237,-500.0,0.00038356,8]
[394791292,1763952643246,-500.0,0.00038356,8]
[394791293,1763952643256,-500.0,0.00038356,10]
[394791294,1763952643265,-503.01503831,0.00038356,8]
[394791295,1763952643274,-500.0,0.00038356,8]
[394791296,1763952643284,-500.0,0.00038356,8]
[394791297,1763952643294,-502.77182896,0.00038356,8]
[394791298,1763952643303,-500.0,0.00038356,8]
[394791299,1763952643312,-500.0,0.00038356,8]
[394791300,1763952643321,-505.40801602,0.00038356,8]
[394791301,1763952643331,-506.47890686,0.00038356,8]
[394791302,1763952643340,-559.98409727,0.00038356,8]
[394791303,1763952643350,-521.13709122,0.00038356,8]
[394791304,1763952643359,-532.73433483,0.00038356,8]
[394791305,1763952643369,-577.42056073,0.00038356,8]
[394791306,1763952643378,-529.07618706,0.00038356,8]
[394791307,1763952643387,-500.0,0.00038356,8]
[394791308,1763952643397,-507.84527187,0.00038356,8]
[394791309,1763952643406,-500.0,0.00038356,8]
[394791310,1763952643416,-504.83547106,0.00038356,8]
[394791311,1763952643425,-552.72571091,0.00038356,8]
[394791312,1763952643434,-500.0,0.00038356,8]
[394791313,1763952643443,-505.37363347,0.00038356,8]
[394791314,1763952643452,-514.83001842,0.00038356,8]
[394791315,1763952643461,-513.92997979,0.00038356,8]
[394791316,1763952643470,-502.88059934,0.00038356,8]
[394791317,1763952643479,-500.0,0.00038356,8]
[394791318,1763952643489,-500.0,0.00038356,8]
[394791319,1763952643498,-565.18772834,0.00038356,8]
[394791320,1763952643507,-507.06085562,0.00038356,8]
[394791321,1763952643517,-500.0,0.00038356,8]
[394791322,1763952643527,-500.0,0.00038356,8]
[394791323,1763952643536,-508.71578886,0.00038356,8]